[Event "Queen Rapid Challenge 2024"]
[Site "Bucharest"]
[Date "2024.03.10"]
[Round "1.1"]
[White "Bulmaga, Irina"]
[Black "Badica, Ariana"]
[Result "1-0"]
[ECO "B94"]
[WhiteElo "2429"]
[BlackElo "1708"]
[Annotator "TA"]
[PlyCount "79"]
[EventDate "2024.03.09"]
[EventType "rapid"]
[EventCountry "ROU"]
[SourceTitle "playchess.com"]
[Source "ChessBase"]
[SourceQuality "1"]
[TimeControl "900+10"]

{[%evp 11,79,29,35,18,15,-11,3,-25,23,7,29,45,41,14,77,60,87,77,91,37,119,52,199,165,352,332,348,361,875,868,866,879,886,890,791,841,782,679,714,706,851,837,926,844,832,885,878,863,795,760,905,663,662,608,625,643,701,676,1763,1740,1533,1345,1742,1368,1775,1591,1245,935,904,887]} 1. e4 {[%emt 0:00:13]} c5 {[%emt 0:00:12]} 2. Nf3 {[%emt 0:00:08]} d6 {[%emt 0:00:07]} 3. d4 {[%emt 0:00:08]} cxd4 {[%emt 0:00:08]} 4. Nxd4 {[%emt 0:00:07]} Nf6 {[%emt 0:00:07]} 5. Nc3 {[%emt 0:00:08]} a6 {[%emt 0:00:08]} 6. Bg5 {[%emt 0:00:16]} Nbd7 {[%emt 0:01:41]} 7. Qe2 {[%emt 0:00:10]} b5 {[%emt 0:01:46]} 8. a3 {[%emt 0:00:21]} Bb7 {[%emt 0:00:50]} 9. f4 {[%emt 0:00:09] The position is equal.} Qc7 {[%emt 0:04:26]} (9... e5 $142 10. Nb3 Be7) 10. O-O-O $11 {[%emt 0:00:18]} e6 {[%emt 0:00:30]} 11. g4 {[%emt 0:01:04][%cal Bg2g4,Bg4g5][%mdl 32]} Be7 {[%emt 0:01:53]} 12. Bxf6 {[%emt 0:00:31]} Nxf6 {[%emt 0:01:33]} (12... Bxf6 $11 {remains equal.} 13. g5 Bxd4 14. Rxd4 O-O) 13. g5 $16 {[%emt 0:00:11]} Nd7 {[%emt 0:00:14]} 14. Kb1 {[%emt 0:00:18]} Nc5 {[%emt 0:00:30]} 15. h4 {[%emt 0:00:45]} Rc8 {[%emt 0:01:38]} ({Black should play} 15... O-O-O $1 $14) 16. h5 {[%emt 0:01:02] White is more active.} ({White should try} 16. Bh3 $16) 16... Nd7 {[%emt 0:01:46] This costs Black the game.} (16... Qa5 $14) 17. Rg1 {[%emt 0:00:23]} Nb6 $2 {[%emt 0:00:12]} (17... Qb6) 18. g6 $18 {[%emt 0:00:25]} hxg6 {[%emt 0:00:18]} 19. hxg6 {[%emt 0:00:07]} Nc4 $2 {[%emt 0:00:12]} (19... Bf6 20. gxf7+ Kxf7) 20. gxf7+ {[%emt 0:00:20] White is clearly winning.} Kxf7 {[%emt 0:00:13] [#]} 21. Rxg7+ $3 {[%emt 0:00:50][%mdl 512]} Kxg7 {[%emt 0:00:08]} 22. Nxe6+ {[%emt 0:00:07]} Kf7 {[%emt 0:00:07]} 23. Nxc7 {[%emt 0:00:08]} Rxc7 {[%emt 0:00:09]} 24. Nd5 {[%emt 0:00:21]} Bxd5 {[%emt 0:00:13]} 25. exd5 {[%emt 0:00:10] [#] Qe6+ would now be deadly.} Ke8 {[%emt 0:00:10]} 26. Qe6 {[%emt 0:00:27]} Kd8 {[%emt 0:00:09]} 27. Bd3 {[%emt 0:00:39]} Re8 {[%emt 0:00:11]} 28. Rg1 {[%emt 0:00:26] Hoping for Rg8.} Bf8 {[%emt 0:00:13]} 29. Qf6+ {[%emt 0:00:12]} Be7 {[%emt 0:00:06]} 30. Qf5 {[%emt 0:00:59]} Ne3 {[%emt 0:00:10]} 31. Qh3 {[%emt 0:00:25]} Nxd5 {[%emt 0:00:11]} 32. Qf3 {[%emt 0:00:19]} Nb6 {[%emt 0:00:09]} 33. Qf2 {[%emt 0:00:40]} Nc4 {[%emt 0:00:08]} 34. Bxc4 {[%emt 0:00:11]} Rxc4 {[%emt 0:00:08]} 35. Qb6+ {[%emt 0:00:08]} Rc7 {[%emt 0:00:07]} 36. Qxa6 {[%emt 0:00:15]} Rc5 {[%emt 0:00:12]} 37. Rd1 {[%emt 0:00:21] Threatening mate with Rxd6+.} Kd7 {[%emt 0:00:13]} 38. Qb7+ {[%emt 0:00:12]} Kd8 {[%emt 0:00:11]} 39. Rd5 {[%emt 0:00:16]} Rxd5 {[%emt 0:00:14]} 40. Qxd5 {[%emt 0:00:07] Weighted Error Value: White=0.24 (precise) /Black=0.56.  Mistake:       	White=1     	Black=6      Inaccurate:     	White=3     	---        OK:         	White=6     	Black=5      Best:        	White=1     	---} 1-0

[Event "Queen Rapid Challenge 2024"]
[Site "Bucharest"]
[Date "2024.03.10"]
[Round "1.2"]
[White "Petculescu, Diana-Silvana"]
[Black "Obada, Ema"]
[Result "0-1"]
[ECO "C07"]
[WhiteElo "1734"]
[BlackElo "1976"]
[Annotator "RC"]
[PlyCount "53"]
[EventDate "2024.03.09"]
[EventType "rapid"]
[EventCountry "ROU"]
[SourceTitle "playchess.com"]
[Source "ChessBase"]
[SourceQuality "1"]
[TimeControl "900+10"]

1. e4 {[%emt 0:00:12]} e6 {[%emt 0:00:13]} 2. d4 {[%emt 0:00:16]} d5 {[%emt 0:00:06]} 3. Nd2 {[%emt 0:00:07]} c5 {[%emt 0:00:07]} 4. exd5 {[%emt 0:00:11]} Qxd5 {[%emt 0:00:08]} 5. Bc4 {[%emt 0:00:35]} Qxg2 {[%emt 0:01:40]} 6. Qf3 {[%emt 0:00:40]} Qxf3 {[%emt 0:00:28]} 7. Ngxf3 {[%emt 0:00:11]} Nf6 {[%emt 0:00:07]} 8. Nb3 {[%emt 0:01:16]} Nbd7 {[%emt 0:00:56]} 9. Be3 {[%emt 0:02:05]} Ng4 {[%emt 0:00:53]} 10. O-O-O {[%emt 0:02:29]} Nxe3 {[%emt 0:01:04]} 11. fxe3 {[%emt 0:00:11]} Be7 {[%emt 0:00:58]} 12. Bb5 {[%emt 0:01:38]} cxd4 {[%emt 0:01:58]} 13. Rxd4 {[%emt 0:01:46]} Bf6 {[%emt 0:00:45]} 14. Rd2 {[%emt 0:01:09]} a6 {[%emt 0:00:18]} 15. Bxd7+ {[%emt 0:00:11]} Bxd7 {[%emt 0:00:06]} 16. Rhd1 {[%emt 0:00:07]} O-O-O {[%emt 0:00:31]} 17. Nc5 {[%emt 0:01:45]} Bc6 {[%emt 0:00:15]} 18. Nd4 {[%emt 0:00:23]} Bd5 {[%emt 0:03:02]} 19. e4 {[%emt 0:01:12]} Bxd4 {[%emt 0:00:42]} 20. Rxd4 {[%emt 0:00:23]} Bc6 {[%emt 0:00:06]} 21. Nb3 {[%emt 0:01:14]} e5 {[%emt 0:00:53]} 22. Rxd8+ {[%emt 0:00:36]} Rxd8 {[%emt 0:00:07]} 23. Rxd8+ {[%emt 0:00:08]} Kxd8 {[%emt 0:00:06]} 24. Nd2 {[%emt 0:00:07]} Ke7 {[%emt 0:00:12]} 25. Kd1 {[%emt 0:00:07]} g6 {[%emt 0:00:14]} 26. Ke2 {[%emt 0:00:07]} f5 {[%emt 0:00:06]} 27. Ke3 {[%emt 0:00:34]} 0-1

[Event "Queen Rapid Challenge 2024"]
[Site "Bucharest"]
[Date "2024.03.10"]
[Round "1.3"]
[White "Sgircea, Silvia-Raluca"]
[Black "Pandelescu, Maria-Catalina"]
[Result "1-0"]
[ECO "D02"]
[WhiteElo "2224"]
[BlackElo "1701"]
[Annotator "RC"]
[PlyCount "109"]
[EventDate "2024.03.09"]
[EventType "rapid"]
[EventCountry "ROU"]
[SourceTitle "playchess.com"]
[Source "ChessBase"]
[SourceQuality "1"]
[TimeControl "900+10"]

1. Nf3 {[%emt 0:00:15]} d5 {[%emt 0:00:13]} 2. e3 {[%emt 0:00:07]} c5 {[%emt 0:00:12]} 3. d4 {[%emt 0:00:15]} Nc6 {[%emt 0:00:19]} 4. c3 {[%emt 0:01:16]} Bf5 {[%emt 0:00:48]} 5. dxc5 {[%emt 0:00:22]} a5 {[%emt 0:00:32]} 6. Nd4 {[%emt 0:00:44]} Bxb1 {[%emt 0:00:48]} 7. Rxb1 {[%emt 0:00:08]} e5 {[%emt 0:00:52]} 8. Nb5 {[%emt 0:00:12]} Bxc5 {[%emt 0:00:37]} 9. Qxd5 {[%emt 0:00:23]} Qb6 {[%emt 0:02:27]} 10. Bc4 {[%emt 0:00:30]} Nh6 {[%emt 0:00:39]} 11. Nd6+ {[%emt 0:01:19]} Bxd6 {[%emt 0:00:22]} 12. Qxd6 {[%emt 0:00:07]} Rd8 {[%emt 0:00:14]} 13. Qa3 {[%emt 0:00:07]} Nf5 {[%emt 0:01:22]} 14. O-O {[%emt 0:00:31]} Nd6 {[%emt 0:00:37]} 15. Qb3 {[%emt 0:02:04]} Qxb3 {[%emt 0:01:51]} 16. Bxb3 {[%emt 0:00:07]} b5 {[%emt 0:00:12]} 17. Rd1 {[%emt 0:00:18]} O-O {[%emt 0:00:40]} 18. Bd5 {[%emt 0:01:33]} Ne7 {[%emt 0:01:24]} 19. Bf3 {[%emt 0:00:19]} e4 {[%emt 0:00:21]} 20. Be2 {[%emt 0:00:07]} Nc4 {[%emt 0:00:20]} 21. b3 {[%emt 0:00:32]} Rxd1+ {[%emt 0:00:14]} 22. Bxd1 {[%emt 0:00:07]} Ne5 {[%emt 0:00:15]} 23. Ba3 {[%emt 0:00:18]} Re8 {[%emt 0:00:33]} 24. Be2 {[%emt 0:00:58]} Nd5 {[%emt 0:00:45]} 25. Bxb5 {[%emt 0:01:10]} Nxc3 {[%emt 0:00:14]} 26. Bxe8 {[%emt 0:00:07]} Nxb1 {[%emt 0:00:07]} 27. Bd6 {[%emt 0:00:23]} Nd3 {[%emt 0:00:15]} 28. Bc7 {[%emt 0:00:26]} Nc3 {[%emt 0:00:21]} 29. Bxa5 {[%emt 0:00:13]} Nxa2 {[%emt 0:00:09]} 30. f3 {[%emt 0:00:53]} exf3 {[%emt 0:00:25]} 31. gxf3 {[%emt 0:00:08]} Kf8 {[%emt 0:00:27]} 32. Bc6 {[%emt 0:00:35]} Ke7 {[%emt 0:00:49]} 33. Be4 {[%emt 0:00:17]} Ndb4 {[%emt 0:00:37]} 34. Kf2 {[%emt 0:00:20]} Ke6 {[%emt 0:00:06]} 35. Bb1 {[%emt 0:00:44]} Ke5 {[%emt 0:00:28]} 36. Ke1 {[%emt 0:01:03]} h5 {[%emt 0:00:15]} 37. Kd2 {[%emt 0:00:25]} Kd5 {[%emt 0:00:08]} 38. Bxa2 {[%emt 0:01:00]} Nxa2 {[%emt 0:00:07]} 39. Kc2 {[%emt 0:00:15]} Kc5 {[%emt 0:00:06]} 40. Kb2 {[%emt 0:00:08]} Nb4 {[%emt 0:00:07]} 41. Bxb4+ {[%emt 0:00:06]} Kxb4 {[%emt 0:00:06]} 42. Kc2 {[%emt 0:00:06]} f5 {[%emt 0:00:10]} 43. f4 {[%emt 0:00:12]} g6 {[%emt 0:00:07]} 44. h4 {[%emt 0:00:10]} Kc5 {[%emt 0:00:10]} 45. Kc3 {[%emt 0:00:07]} Kd5 {[%emt 0:00:10]} 46. b4 {[%emt 0:00:06]} Kc6 {[%emt 0:00:10]} 47. Kc4 {[%emt 0:00:07]} Kb6 {[%emt 0:00:10]} 48. b5 {[%emt 0:00:06]} Kb7 {[%emt 0:00:10]} 49. Kc5 {[%emt 0:00:06]} Kc7 {[%emt 0:00:05]} 50. Kd5 {[%emt 0:00:17]} Kb6 {[%emt 0:00:07]} 51. Ke6 {[%emt 0:00:06]} Kxb5 {[%emt 0:00:07]} 52. Kf6 {[%emt 0:00:06]} Kc5 {[%emt 0:00:06]} 53. Kxg6 {[%emt 0:00:07]} Kd5 {[%emt 0:00:07]} 54. Kxf5 {[%emt 0:00:06]} Kd6 {[%emt 0:00:11]} 55. e4 {[%emt 0:01:46]} 1-0

[Event "Queen Rapid Challenge 2024"]
[Site "Bucharest"]
[Date "2024.03.10"]
[Round "1.4"]
[White "Mihalea, Maria-Ioana"]
[Black "Raeva, Elitsa"]
[Result "0-1"]
[ECO "B34"]
[WhiteElo "1712"]
[BlackElo "2185"]
[Annotator "RC"]
[PlyCount "87"]
[EventDate "2024.03.09"]
[EventType "rapid"]
[EventCountry "ROU"]
[SourceTitle "playchess.com"]
[Source "ChessBase"]
[SourceQuality "1"]
[TimeControl "900+10"]

1. e4 {[%emt 0:00:13]} c5 {[%emt 0:00:12]} 2. Nf3 {[%emt 0:00:07]} Nc6 {[%emt 0:00:06]} 3. d4 {[%emt 0:00:07]} cxd4 {[%emt 0:00:07]} 4. Nxd4 {[%emt 0:00:08]} g6 {[%emt 0:00:07]} 5. Nc3 {[%emt 0:00:07]} Bg7 {[%emt 0:00:07]} 6. Be3 {[%emt 0:00:08]} Nf6 {[%emt 0:00:08]} 7. Nxc6 {[%emt 0:00:07]} bxc6 {[%emt 0:00:07]} 8. e5 {[%emt 0:00:08]} Ng8 {[%emt 0:00:08]} 9. Bd4 {[%emt 0:00:07]} Nh6 {[%emt 0:00:22]} 10. f4 {[%emt 0:00:53]} Nf5 {[%emt 0:01:18]} 11. Bf2 {[%emt 0:00:21]} d6 {[%emt 0:00:29]} 12. g4 {[%emt 0:03:08]} Nh6 {[%emt 0:00:07]} 13. Bg2 {[%emt 0:00:10]} O-O {[%emt 0:01:27]} 14. g5 {[%emt 0:01:26]} Ng4 {[%emt 0:00:10]} 15. Bg3 {[%emt 0:00:32]} Ne3 {[%emt 0:01:38]} 16. Qe2 {[%emt 0:00:13]} Nxg2+ {[%emt 0:00:13]} 17. Qxg2 {[%emt 0:00:09]} dxe5 {[%emt 0:00:07]} 18. fxe5 {[%emt 0:00:34]} Qb6 {[%emt 0:00:14]} 19. O-O-O {[%emt 0:02:28]} Rb8 {[%emt 0:00:17]} 20. b3 {[%emt 0:02:50]} Qa5 {[%emt 0:01:39]} 21. Qd2 {[%emt 0:01:29]} Bg4 {[%emt 0:01:22]} 22. Na4 {[%emt 0:01:10]} Qb5 {[%emt 0:03:37]} 23. Rde1 {[%emt 0:00:22]} e6 {[%emt 0:00:40]} 24. h4 {[%emt 0:00:49]} c5 {[%emt 0:00:32]} 25. Qf4 {[%emt 0:00:17]} Bf5 {[%emt 0:00:09]} 26. h5 {[%emt 0:00:19]} Rfd8 {[%emt 0:00:28]} 27. hxg6 {[%emt 0:00:14]} Bxg6 {[%emt 0:00:07]} 28. Bf2 {[%emt 0:00:11]} c4 {[%emt 0:00:46]} 29. Qxc4 {[%emt 0:00:10]} Qxc4 {[%emt 0:00:08]} 30. bxc4 {[%emt 0:00:07]} Rb4 {[%emt 0:00:19]} 31. Nb2 {[%emt 0:00:09]} Rdb8 {[%emt 0:00:26]} 32. Bd4 {[%emt 0:00:07]} a5 {[%emt 0:00:28]} 33. Bc3 {[%emt 0:00:09]} R4b7 {[%emt 0:00:13]} 34. Rd1 {[%emt 0:00:09]} Bf8 {[%emt 0:00:19]} 35. Nd3 {[%emt 0:00:25]} Be7 {[%emt 0:00:21]} 36. Rhg1 {[%emt 0:00:08]} a4 {[%emt 0:00:44]} 37. Kd2 {[%emt 0:00:06]} Rc8 {[%emt 0:00:13]} 38. Nb2 {[%emt 0:00:11]} a3 {[%emt 0:00:15]} 39. Nd3 {[%emt 0:00:12]} Rxc4 {[%emt 0:00:07]} 40. Rb1 {[%emt 0:00:10]} Rxb1 {[%emt 0:00:19]} 41. Rxb1 {[%emt 0:00:06]} Bxg5+ {[%emt 0:00:07]} 42. Ke2 {[%emt 0:00:17]} Rxc3 {[%emt 0:00:06]} 43. Rb8+ {[%emt 0:00:21]} Kg7 {[%emt 0:00:07]} 44. Ke1 {[%emt 0:00:56]} 0-1

[Event "Queen Rapid Challenge 2024"]
[Site "Bucharest"]
[Date "2024.03.10"]
[Round "1.5"]
[White "Marin, Alexia-Iuliana"]
[Black "Pirvulescu, Ekaterina"]
[Result "0-1"]
[ECO "D02"]
[WhiteElo "1573"]
[BlackElo "2091"]
[Annotator "RC"]
[PlyCount "96"]
[EventDate "2024.03.09"]
[EventType "rapid"]
[EventCountry "ROU"]
[SourceTitle "playchess.com"]
[Source "ChessBase"]
[SourceQuality "1"]
[TimeControl "900+10"]

1. d4 {[%emt 0:00:13]} d5 {[%emt 0:00:11]} 2. Bf4 {[%emt 0:00:07]} Nf6 {[%emt 0:00:15]} 3. Nf3 {[%emt 0:00:12]} c5 {[%emt 0:00:12]} 4. e3 {[%emt 0:00:14]} Nc6 {[%emt 0:00:09]} 5. c3 {[%emt 0:00:45]} Qb6 {[%emt 0:00:31]} 6. Qc2 {[%emt 0:01:11]} g6 {[%emt 0:00:40]} 7. Be2 {[%emt 0:02:00]} Bf5 {[%emt 0:00:12]} 8. Qc1 {[%emt 0:00:46]} Bg7 {[%emt 0:01:13]} 9. Nbd2 {[%emt 0:01:08]} c4 {[%emt 0:00:20]} 10. O-O {[%emt 0:01:00]} O-O {[%emt 0:00:07]} 11. Bg3 {[%emt 0:02:41]} Nd7 {[%emt 0:00:59]} 12. Re1 {[%emt 0:02:30]} e5 {[%emt 0:00:43]} 13. dxe5 {[%emt 0:00:42]} Ndxe5 {[%emt 0:00:35]} 14. Nxe5 {[%emt 0:00:31]} Nxe5 {[%emt 0:00:06]} 15. Nf3 {[%emt 0:00:54]} Nd3 {[%emt 0:00:54]} 16. Bxd3 {[%emt 0:00:10]} Bxd3 {[%emt 0:00:21]} 17. Rd1 {[%emt 0:01:20]} Rad8 {[%emt 0:01:10]} 18. Ne1 {[%emt 0:00:48]} Bf5 {[%emt 0:00:42]} 19. Qd2 {[%emt 0:00:38]} h6 {[%emt 0:00:37]} 20. Nf3 {[%emt 0:00:18]} Rfe8 {[%emt 0:01:04]} 21. Nd4 {[%emt 0:00:16]} Bd3 {[%emt 0:00:22]} 22. Re1 {[%emt 0:00:16]} Qc5 {[%emt 0:00:42]} 23. Rad1 {[%emt 0:00:12]} Qa5 {[%emt 0:03:34]} 24. a3 {[%emt 0:00:10]} Qa4 {[%emt 0:00:23]} 25. Rc1 {[%emt 0:00:11]} Qd7 {[%emt 0:00:18]} 26. Nf3 {[%emt 0:00:09]} b5 {[%emt 0:00:45]} 27. Red1 {[%emt 0:00:09]} a5 {[%emt 0:00:08]} 28. Ne1 {[%emt 0:00:07]} Bf5 {[%emt 0:00:20]} 29. Ra1 {[%emt 0:00:11]} Bg4 {[%emt 0:00:41]} 30. Rdc1 {[%emt 0:00:07]} Qe7 {[%emt 0:00:25]} 31. Qc2 {[%emt 0:00:17]} b4 {[%emt 0:00:24]} 32. axb4 {[%emt 0:00:06]} axb4 {[%emt 0:00:05]} 33. cxb4 {[%emt 0:00:07]} Qxb4 {[%emt 0:00:08]} 34. Ra4 {[%emt 0:00:06]} Qxb2 {[%emt 0:00:12]} 35. Qxb2 {[%emt 0:00:19]} Bxb2 {[%emt 0:00:06]} 36. Rb1 {[%emt 0:00:05]} Bg7 {[%emt 0:00:15]} 37. Nc2 {[%emt 0:00:07]} Bf5 {[%emt 0:00:08]} 38. Rc1 {[%emt 0:00:07]} Ra8 {[%emt 0:00:23]} 39. Rxa8 {[%emt 0:00:19]} Rxa8 {[%emt 0:00:06]} 40. Nb4 {[%emt 0:00:13]} Be6 {[%emt 0:01:00]} 41. Rd1 {[%emt 0:00:11]} Ra1 {[%emt 0:00:11]} 42. Rxa1 {[%emt 0:00:06]} Bxa1 {[%emt 0:00:06]} 43. Kf1 {[%emt 0:00:10]} Bc3 {[%emt 0:00:08]} 44. Nc2 {[%emt 0:00:06]} Bf5 {[%emt 0:00:39]} 45. Nd4 {[%emt 0:00:13]} Bd3+ {[%emt 0:00:00]} 46. Ne2 {[%emt 0:00:09]} Bd2 {[%emt 0:00:00]} 47. Be5 {[%emt 0:00:07]} c3 {[%emt 0:00:00]} 48. Bxc3 {[%emt 0:00:07]} Bxc3 {[%emt 0:00:05]} 0-1

[Event "Queen Rapid Challenge 2024"]
[Site "Bucharest"]
[Date "2024.03.10"]
[Round "1.6"]
[White "Ciolacu, Alessia-Mihaela"]
[Black "Ivascu, Andreea-Catalina"]
[Result "1-0"]
[ECO "E18"]
[WhiteElo "2175"]
[BlackElo "1578"]
[Annotator "RC"]
[PlyCount "63"]
[EventDate "2024.03.09"]
[EventType "rapid"]
[EventCountry "ROU"]
[SourceTitle "playchess.com"]
[Source "ChessBase"]
[SourceQuality "1"]
[TimeControl "900+10"]

1. d4 {[%emt 0:00:13]} d5 {[%emt 0:00:11]} 2. c4 {[%emt 0:00:08]} e6 {[%emt 0:00:08]} 3. Nf3 {[%emt 0:00:09]} Nf6 {[%emt 0:00:08]} 4. g3 {[%emt 0:00:07]} Be7 {[%emt 0:00:09]} 5. Bg2 {[%emt 0:00:07]} O-O {[%emt 0:00:16]} 6. O-O {[%emt 0:00:15]} b6 {[%emt 0:01:01]} 7. cxd5 {[%emt 0:00:16]} exd5 {[%emt 0:00:35]} 8. Nc3 {[%emt 0:00:10]} Bb7 {[%emt 0:00:33]} 9. Bf4 {[%emt 0:00:08]} c6 {[%emt 0:01:02]} 10. Rc1 {[%emt 0:00:33]} Bd6 {[%emt 0:00:31]} 11. Be5 {[%emt 0:01:18]} Re8 {[%emt 0:01:44]} 12. Qd3 {[%emt 0:01:45]} Qe7 {[%emt 0:03:54]} 13. Qf5 {[%emt 0:01:48]} Nbd7 {[%emt 0:02:28]} 14. Bf4 {[%emt 0:00:49]} Bxf4 {[%emt 0:00:58]} 15. gxf4 {[%emt 0:00:11]} Qe6 {[%emt 0:01:01]} 16. Qd3 {[%emt 0:00:29]} Ne4 {[%emt 0:01:18]} 17. Ng5 {[%emt 0:01:41]} Nxg5 {[%emt 0:00:23]} 18. fxg5 {[%emt 0:00:07]} Qg6 {[%emt 0:00:26]} 19. Qg3 {[%emt 0:02:14]} Ba6 {[%emt 0:00:19]} 20. Rfe1 {[%emt 0:00:33]} Nf8 {[%emt 0:00:20]} 21. e4 {[%emt 0:00:32]} Ne6 {[%emt 0:00:41]} 22. exd5 {[%emt 0:00:19]} cxd5 {[%emt 0:00:13]} 23. Nxd5 {[%emt 0:00:26]} Qxg5 {[%emt 0:00:11]} 24. Qxg5 {[%emt 0:00:36]} Nxg5 {[%emt 0:00:08]} 25. Nc7 {[%emt 0:00:10]} Rxe1+ {[%emt 0:00:18]} 26. Rxe1 {[%emt 0:00:07]} Rf8 {[%emt 0:00:12]} 27. Nxa6 {[%emt 0:00:08]} h6 {[%emt 0:00:09]} 28. d5 {[%emt 0:00:13]} Rd8 {[%emt 0:00:09]} 29. h4 {[%emt 0:00:19]} Nh7 {[%emt 0:00:10]} 30. Nb4 {[%emt 0:00:26]} Nf6 {[%emt 0:00:09]} 31. Nc6 {[%emt 0:00:22]} Rc8 {[%emt 0:00:15]} 32. Ne7+ {[%emt 0:00:08]} 1-0

[Event "Queen Rapid Challenge 2024"]
[Site "Bucharest"]
[Date "2024.03.10"]
[Round "1.7"]
[White "Ivanova, Elena"]
[Black "Iordache, Alexia-Andreea"]
[Result "0-1"]
[ECO "B57"]
[WhiteElo "1560"]
[BlackElo "1866"]
[Annotator "NA RC"]
[PlyCount "122"]
[EventDate "2024.03.09"]
[EventType "rapid"]
[EventCountry "ROU"]
[SourceTitle "playchess.com"]
[Source "ChessBase"]
[SourceQuality "1"]
[TimeControl "900+10"]

1. e4 {[%emt 0:00:13]} c5 {[%emt 0:00:10]} 2. Nf3 {[%emt 0:00:08]} d6 {[%emt 0:00:06]} 3. d4 {[%emt 0:00:07]} cxd4 {[%emt 0:00:06]} 4. Nxd4 {[%emt 0:00:07]} Nf6 {[%emt 0:00:10]} 5. Nc3 {[%emt 0:00:07]} Nc6 {[%emt 0:00:06]} 6. Bc4 {[%emt 0:00:25]} Bd7 {[%emt 0:00:08]} 7. O-O {[%emt 0:00:08]} g6 {[%emt 0:00:22]} 8. Be3 {[%emt 0:00:19]} Bg7 {[%emt 0:00:07]} 9. Nb3 {[%emt 0:00:41]} O-O {[%emt 0:00:24]} 10. Kh1 {[%emt 0:00:27]} Ne5 {[%emt 0:00:56]} 11. Be2 {[%emt 0:00:40]} Neg4 {[%emt 0:00:43]} 12. Bf4 {[%emt 0:01:05]} Qb6 {[%emt 0:00:48]} 13. Qe1 {[%emt 0:01:09]} Bc6 {[%emt 0:01:09]} 14. f3 {[%emt 0:00:47]} Ne3 {[%emt 0:00:29]} 15. Bxe3 {[%emt 0:00:24]} Qxe3 {[%emt 0:00:06]} 16. Nd1 {[%emt 0:00:32]} Qb6 $15 {[%emt 0:00:25]} 17. Nf2 {[%emt 0:00:13]} Nh5 {[%emt 0:00:21]} 18. Nd3 {[%emt 0:00:20]} Bb5 {[%emt 0:00:46]} 19. Nbc1 {[%emt 0:00:31]} Rac8 {[%emt 0:01:01]} 20. c3 {[%emt 0:00:49]} Nf6 {[%emt 0:00:46]} 21. Nb4 {[%emt 0:01:40]} Bd7 {[%emt 0:00:47]} 22. Ncd3 {[%emt 0:00:40]} a5 {[%emt 0:00:23]} 23. Nc2 {[%emt 0:00:16]} Bb5 {[%emt 0:00:19]} 24. Rb1 {[%emt 0:00:23]} Nd7 {[%emt 0:01:56]} 25. Nf4 {[%emt 0:00:32]} Bc6 {[%emt 0:01:13]} 26. Qd1 {[%emt 0:01:03]} Be5 {[%emt 0:03:37]} 27. Nd5 {[%emt 0:00:57]} Bxd5 {[%emt 0:00:06]} 28. exd5 {[%emt 0:00:32]} Bg7 {[%emt 0:00:33]} 29. Qd2 {[%emt 0:00:56]} Ne5 {[%emt 0:00:24]} 30. Rfe1 {[%emt 0:00:33]} Qc7 {[%emt 0:00:14]} 31. Na3 {[%emt 0:00:41]} Nd7 {[%emt 0:00:27]} 32. Nb5 {[%emt 0:00:47]} Qc5 {[%emt 0:00:25]} 33. c4 {[%emt 0:00:46]} Nb6 {[%emt 0:00:23]} 34. b3 {[%emt 0:00:10]} a4 {[%emt 0:00:19]} 35. Bd1 {[%emt 0:00:44]} Rfe8 {[%emt 0:00:23]} 36. Rc1 {[%emt 0:00:25]} axb3 {[%emt 0:00:14]} 37. axb3 {[%emt 0:00:10]} Ra8 {[%emt 0:00:07]} 38. b4 {[%emt 0:00:22]} Qc8 {[%emt 0:00:15]} 39. c5 {[%emt 0:00:14]} dxc5 {[%emt 0:00:12]} 40. bxc5 {[%emt 0:00:07]} Qd7 {[%emt 0:00:14]} 41. Nc3 {[%emt 0:00:26]} Bxc3 {[%emt 0:00:09]} 42. Rxc3 {[%emt 0:00:34]} Qxd5 {[%emt 0:00:10]} 43. Qxd5 {[%emt 0:00:03]} Nxd5 {[%emt 0:00:06]} 44. Rd3 {[%emt 0:00:06]} e6 {[%emt 0:00:11]} 45. Bb3 {[%emt 0:00:07]} Nf6 {[%emt 0:00:12]} 46. Kg1 {[%emt 0:00:06]} Ra3 {[%emt 0:00:08]} 47. Rb1 {[%emt 0:00:14]} Rc8 {[%emt 0:00:10]} 48. Rc3 {[%emt 0:00:13]} Nd5 {[%emt 0:00:09]} 49. Rcc1 {[%emt 0:00:10]} Ne7 {[%emt 0:00:14]} 50. Bd1 {[%emt 0:00:12]} Ra5 {[%emt 0:00:06]} 51. Bc2 {[%emt 0:00:13]} Raxc5 {[%emt 0:00:07]} 52. Rb2 {[%emt 0:00:09]} Nd5 {[%emt 0:00:09]} 53. Kf2 {[%emt 0:00:07]} Nf4 {[%emt 0:00:11]} 54. Ke3 {[%emt 0:00:09]} Nxg2+ {[%emt 0:00:05]} 55. Kd2 {[%emt 0:00:06]} Rd8+ {[%emt 0:00:07]} 56. Ke2 {[%emt 0:00:07]} Nf4+ {[%emt 0:00:07]} 57. Ke3 {[%emt 0:00:07]} Nd5+ {[%emt 0:00:39]} 58. Ke2 {[%emt 0:00:07]} Nc3+ {[%emt 0:00:00]} 59. Ke1 {[%emt 0:00:09]} Re5+ {[%emt 0:00:00]} 60. Kf2 {[%emt 0:00:07]} Rd2+ {[%emt 0:00:00]} 61. Kg3 {[%emt 0:00:06]} Ne2+ {[%emt 0:00:00]} 0-1